fUST/lending_fUST_20250726
["ID","MTS","AMOUNT","RATE_DAILY","PERIOD"]
[375066077,1753516235012,-151.0,0.00019379,2]
[375066078,1753516235021,-429.7456075,0.000194,2]
[375066079,1753516235030,-160.0,0.00019404,2]
[375066080,1753516235040,-476.98041219,0.00019404,2]
[375066081,1753516235049,-231.25662632,0.00019404,2]
[375066082,1753516235059,-160.0,0.00019404,2]
[375066083,1753516235068,-526.41699184,0.00019404,2]
[375066084,1753516235078,-160.0,0.00019404,2]
[375066085,1753516235087,-214.8008262,0.00019404,2]
[375066086,1753516235097,-160.0,0.00019404,2]
[375066087,1753516235107,-160.0,0.00019404,2]
[375066088,1753516235116,-12629.83479014,0.00019404,2]
[375066089,1753516235125,-215.9757969,0.00019404,2]
[375066090,1753516235135,-312.16666667,0.00019404,2]
[375066091,1753516235144,-840.57612966,0.00019404,2]
[375066092,1753516235154,-160.0,0.00019404,2]
[375066093,1753516235164,-687.62,0.0001945,2]
[375066094,1753516235174,-689.53,0.00019451,2]
[375066095,1753516235183,-460.0,0.00019451,2]
[375066096,1753516235192,-462.53797899,0.00019451,2]
[375066097,1753516235202,-460.0,0.00019451,2]
[375066098,1753516235212,-460.0,0.00019451,2]
[375066099,1753516235222,-460.0,0.00019451,2]
[375066100,1753516235231,-461.85808922,0.00019451,2]
[375066101,1753516235241,-562.76037301,0.00019451,2]
[375066102,1753516235250,-460.0,0.00019451,2]
[375066103,1753516235259,-151.0,0.00019451,2]
[375066104,1753516235269,-151.0,0.00019451,2]
[375066105,1753516235278,-151.0,0.00019451,2]
[375066106,1753516235287,-151.0,0.00019451,2]
[375066107,1753516235297,-151.0,0.00019451,2]
[375066108,1753516235307,-663.45,0.00019451,2]
[375066109,1753516235316,-460.0,0.00019451,2]
[375066110,1753516235325,-975.6,0.00019451,2]
[375066111,1753516235335,-2462.99,0.00019451,2]
[375066112,1753516235344,-151.0,0.00019451,2]
[375066113,1753516235354,-151.0,0.00019451,2]
[375066114,1753516235363,-2005.83,0.00019451,2]
[375066115,1753516235373,-687.62,0.00019451,2]
[375066116,1753516235382,-687.62,0.00019451,2]
[375066117,1753516235392,-687.62,0.00019451,2]
[375066118,1753516235401,-687.62,0.00019451,2]
[375066119,1753516235411,-687.62,0.00019451,2]
[375066120,1753516235420,-687.62,0.00019451,2]
[375066121,1753516235430,-687.62,0.00019451,2]
[375066122,1753516235439,-687.62,0.00019451,2]
[375066123,1753516235449,-687.62,0.00019451,2]
[375066124,1753516235459,-687.81908038,0.00019451,2]
[375066125,1753516235468,-151.0,0.00019452,2]
[375066126,1753516235477,-151.0,0.00019452,2]
[375066127,1753516235487,-451.46302591,0.00019452,2]
[375066128,1753516235497,-151.0,0.00019452,2]
[375066129,1753516235507,-151.0,0.00019452,2]
[375066130,1753516235516,-151.0,0.00019452,2]
[375066131,1753516235526,-460.0,0.00019452,2]
[375066132,1753516235535,-151.0,0.00019452,2]
[375066133,1753516235546,-151.0,0.00019452,2]
[375066134,1753516235556,-151.0,0.00019452,2]
[375066135,1753516235566,-460.0,0.00019452,2]
[375066136,1753516235575,-460.0,0.00019452,2]
[375066137,1753516235586,-460.0,0.00019452,2]
[375066138,1753516235596,-560.62,0.00019452,2]
[375066139,1753516235605,-460.0,0.00019452,2]
[375066140,1753516235615,-460.0,0.00019452,2]
[375066141,1753516235625,-461.46223028,0.00019452,2]
[375066142,1753516235635,-460.0,0.00019452,2]
[375066143,1753516235644,-151.0,0.00019452,2]
[375066144,1753516235653,-151.0,0.00019452,2]
[375066145,1753516235663,-216.378143,0.00019452,2]
[375066146,1753516235673,-151.0,0.00019452,2]
[375066147,1753516235683,-151.0,0.00019452,2]
[375066148,1753516235693,-151.0,0.00019452,2]
[375066149,1753516235703,-151.0,0.00019452,2]
[375066150,1753516235796,-249.79879,0.00019452,2]
[375066151,1753516235806,-258.65595581,0.00019452,2]
[375066152,1753516235816,-460.0,0.00019452,2]
[375066153,1753516235825,-462.81035214,0.00019452,2]
[375066154,1753516235835,-460.0,0.00019452,2]
[375066155,1753516235844,-460.0,0.00019452,2]
[375066156,1753516235854,-460.0,0.00019452,2]
[375066157,1753516235863,-463.47142927,0.00019452,2]
[375066158,1753516235873,-460.0,0.00019452,2]
[375066159,1753516235883,-460.0,0.00019452,2]
[375066160,1753516235893,-460.0,0.00019452,2]
[375066161,1753516235903,-460.0,0.00019452,2]
[375066162,1753516235913,-460.0,0.00019452,2]
[375066163,1753516235922,-460.0,0.00019452,2]
[375066164,1753516235932,-460.0,0.00019452,2]
[375066165,1753516235941,-460.0,0.00019452,2]
[375066166,1753516235951,-460.0,0.00019452,2]
[375066167,1753516235960,-460.0,0.00019452,2]
[375066168,1753516235972,-460.0,0.00019452,2]
[375066169,1753516235982,-460.0,0.00019452,2]
[375066170,1753516235991,-460.0,0.00019452,2]
[375066171,1753516236002,-460.0,0.00019452,2]
[375066172,1753516236011,-460.0,0.00019452,2]
[375066173,1753516236020,-460.0,0.00019452,2]
[375066174,1753516236030,-510.09670857,0.00019452,2]
[375066175,1753516236040,-460.0,0.00019452,2]
[375066176,1753516236049,-460.0,0.00019452,2]
[375066177,1753516236059,-460.0,0.00019452,2]
[375066178,1753516236068,-460.0,0.00019452,2]
[375066179,1753516236077,-460.0,0.00019452,2]
[375066180,1753516236086,-463.13467232,0.00019452,2]
[375066181,1753516236096,-235.69070677,0.00019452,2]
[375066182,1753516236106,-203.20015898,0.00019452,2]
[375066183,1753516236116,-747.27,0.00019452,2]
[375066184,1753516236125,-151.0,0.00019452,2]
[375066185,1753516236134,-567.57,0.00019452,2]
[375066186,1753516236144,-180.91859,0.00019452,2]
[375066187,1753516236153,-180.91859,0.00019452,2]
[375066188,1753516236162,-180.91859,0.00019452,2]
[375066189,1753516236172,-180.91859,0.00019452,2]
[375066190,1753516236181,-381.59560129,0.00019452,2]
[375066191,1753516236191,-460.0,0.00019452,2]
[375066192,1753516236200,-151.0,0.00019452,2]
[375066193,1753516236209,-460.0,0.00019452,2]
[375066194,1753516236219,-462.46008143,0.00019452,2]
[375066195,1753516236228,-460.0,0.00019452,2]
[375066196,1753516236237,-460.0,0.00019452,2]
[375066197,1753516236248,-460.0,0.00019452,2]
[375066198,1753516236257,-460.0,0.00019452,2]
[375066199,1753516236267,-460.0,0.00019452,2]
[375066200,1753516236277,-151.0,0.00019452,2]
[375066201,1753516236286,-151.0,0.00019452,2]
[375066202,1753516236296,-151.0,0.00019452,2]
[375066203,1753516236306,-151.0,0.00019452,2]
[375066204,1753516236315,-461.88020488,0.00019452,2]
[375066205,1753516236325,-460.0,0.00019452,2]
[375066206,1753516236335,-460.0,0.00019452,2]
[375066207,1753516236344,-460.0,0.00019452,2]
[375066208,1753516236353,-460.0,0.00019452,2]
[375066209,1753516236363,-460.0,0.00019452,2]
[375066210,1753516236372,-463.02936047,0.00019452,2]
[375066211,1753516236382,-472.89,0.00019452,2]
[375066212,1753516236391,-832.96,0.00019452,2]
[375066213,1753516236401,-460.0,0.00019452,2]
[375066214,1753516236410,-460.0,0.00019452,2]
[375066215,1753516236420,-460.0,0.00019452,2]
[375066216,1753516236429,-324.0,0.00019452,2]
[375066217,1753516236439,-467.32354428,0.00019452,2]
[375066218,1753516236449,-460.0,0.00019452,2]
[375066219,1753516236459,-460.0,0.00019452,2]
[375066220,1753516236469,-460.0,0.00019452,2]
[375066221,1753516236478,-460.0,0.00019452,2]
[375066222,1753516236488,-288.70892543,0.00019452,2]
[375066223,1753516236497,-460.0,0.00019452,2]
[375066224,1753516236507,-151.0,0.00019452,2]
[375066225,1753516236516,-157.383504,0.00019452,2]
[375066226,1753516236526,-460.0,0.00019452,2]
[375066227,1753516236535,-500.0,0.00019452,2]
[375066228,1753516236545,-460.0,0.00019452,2]
[375066229,1753516236555,-460.0,0.00019452,2]
[375066230,1753516236564,-460.0,0.00019452,2]
[375066231,1753516236574,-460.0,0.00019452,2]
[375066232,1753516236583,-591.44,0.00019452,2]
[375066233,1753516236592,-322.87988812,0.00019452,2]
[375066234,1753516236602,-460.0,0.00019452,2]
[375066235,1753516236611,-460.0,0.00019452,2]
[375066236,1753516236620,-779.67,0.00019452,2]
[375066237,1753516236630,-460.0,0.00019452,2]
[375066238,1753516236639,-460.0,0.00019452,2]
[375066239,1753516236649,-918.77,0.00019452,2]
[375066240,1753516236658,-460.0,0.00019452,2]
[375066241,1753516236667,-460.0,0.00019452,2]
[375066242,1753516236677,-473.85373631,0.00019452,2]
[375066243,1753516236686,-460.0,0.00019452,2]
[375066244,1753516236696,-460.0,0.00019452,2]
[375066245,1753516236709,-1194.54,0.00019452,2]
[375066246,1753516236718,-151.0,0.00019452,2]
[375066247,1753516236728,-151.0,0.00019452,2]
[375066248,1753516236738,-460.0,0.00019452,2]
[375066249,1753516236748,-460.0,0.00019452,2]
[375066250,1753516236757,-460.0,0.00019452,2]
[375066251,1753516236766,-460.0,0.00019452,2]
[375066252,1753516236777,-460.0,0.00019452,2]
[375066253,1753516236787,-460.0,0.00019452,2]
[375066254,1753516236796,-460.0,0.00019452,2]
[375066255,1753516236806,-460.0,0.00019452,2]
[375066256,1753516236816,-460.0,0.00019452,2]
[375066257,1753516236825,-460.0,0.00019452,2]
[375066258,1753516236834,-460.0,0.00019452,2]
[375066259,1753516236843,-460.0,0.00019452,2]
[375066260,1753516236852,-460.0,0.00019452,2]
[375066261,1753516236862,-479.16,0.00019452,2]
[375066262,1753516236871,-460.0,0.00019452,2]
[375066263,1753516236880,-460.0,0.00019452,2]
[375066264,1753516236890,-460.0,0.00019452,2]
[375066265,1753516236900,-460.0,0.00019452,2]
[375066266,1753516236909,-460.0,0.00019452,2]
[375066267,1753516236918,-460.0,0.00019452,2]
[375066268,1753516236928,-460.0,0.00019452,2]
[375066269,1753516236937,-460.0,0.00019452,2]
[375066270,1753516236946,-460.0,0.00019452,2]
[375066271,1753516236957,-460.0,0.00019452,2]
[375066272,1753516236966,-460.0,0.00019452,2]
[375066273,1753516236975,-460.0,0.00019452,2]
[375066274,1753516236984,-460.0,0.00019452,2]
[375066275,1753516236995,-460.0,0.00019452,2]
[375066276,1753516237004,-460.0,0.00019452,2]
[375066277,1753516237014,-151.0,0.00019452,2]
[375066278,1753516237023,-151.0,0.00019452,2]
[375066279,1753516237032,-460.0,0.00019452,2]
[375066280,1753516237042,-151.0,0.00019452,2]
[375066281,1753516237051,-460.0,0.00019452,2]
[375066282,1753516237061,-151.0,0.00019452,2]
[375066283,1753516237071,-462.06082428,0.00019452,2]
[375066284,1753516237080,-460.0,0.00019452,2]
[375066285,1753516237091,-151.0,0.00019452,2]
[375066286,1753516237102,-680.97,0.00019452,2]
[375066287,1753516237111,-151.0,0.00019452,2]
[375066288,1753516237120,-460.0,0.00019452,2]
[375066289,1753516237130,-462.55313567,0.00019452,2]
[375066290,1753516237139,-267.818058,0.00019452,2]
[375066291,1753516237149,-1126.82,0.00019452,2]
[375066292,1753516237158,-460.0,0.00019452,2]
[375066293,1753516237167,-1133.62,0.00019452,2]
[375066294,1753516237178,-460.0,0.00019452,2]
[375066295,1753516237188,-721.47,0.00019452,2]
[375066296,1753516237198,-460.0,0.00019452,2]
[375066297,1753516237209,-460.0,0.00019452,2]
[375066298,1753516237222,-460.0,0.00019452,2]
[375066299,1753516237231,-460.0,0.00019452,2]
[375066300,1753516237240,-462.76519742,0.00019452,2]
[375066301,1753516237250,-460.0,0.00019452,2]
[375066302,1753516237259,-460.0,0.00019452,2]
[375066303,1753516237268,-467.58750791,0.00019452,2]
[375066304,1753516237278,-461.93658956,0.00019452,2]
[375066305,1753516237287,-460.0,0.00019452,2]
[375066306,1753516237296,-460.0,0.00019452,2]
[375066307,1753516237305,-460.0,0.00019452,2]
[375066308,1753516237314,-460.0,0.00019452,2]
[375066309,1753516237324,-460.0,0.00019452,2]
[375066310,1753516237333,-460.0,0.00019452,2]
[375066311,1753516237343,-460.0,0.00019452,2]
[375066312,1753516237352,-460.0,0.00019452,2]
[375066313,1753516237427,-460.0,0.00019452,2]
[375066314,1753516237445,-460.0,0.00019452,2]
[375066315,1753516237454,-460.0,0.00019452,2]
[375066316,1753516237463,-1027.66,0.00019452,2]
[375066317,1753516237473,-460.0,0.00019452,2]
[375066318,1753516237482,-460.0,0.00019452,2]
[375066319,1753516237492,-460.0,0.00019452,2]
[375066320,1753516237502,-3432.76,0.00019452,2]
[375066321,1753516237512,-324.0,0.00019452,2]
[375066322,1753516237521,-324.0,0.00019452,2]
[375066323,1753516237530,-460.0,0.00019452,2]
[375066324,1753516237539,-324.0,0.00019452,2]
[375066325,1753516237548,-460.0,0.00019452,2]
[375066326,1753516237558,-324.0,0.00019452,2]
[375066327,1753516237567,-324.0,0.00019452,2]
[375066328,1753516237576,-324.0,0.00019452,2]
[375066329,1753516237585,-460.0,0.00019452,2]
[375066330,1753516237594,-324.0,0.00019452,2]
[375066331,1753516237603,-460.0,0.00019452,2]
[375066332,1753516237613,-460.0,0.00019452,2]
[375066333,1753516237621,-324.0,0.00019452,2]
[375066334,1753516237630,-324.0,0.00019452,2]
[375066335,1753516237639,-324.0,0.00019452,2]
[375066336,1753516237648,-324.0,0.00019452,2]
[375066337,1753516237658,-324.0,0.00019452,2]
[375066339,1753516237667,-151.0,0.00019452,2]
[375066340,1753516237677,-151.0,0.00019452,2]
[375066341,1753516237686,-827.92,0.00019452,2]
[375066342,1753516237696,-151.0,0.00019452,2]
[375066343,1753516237709,-151.0,0.00019452,2]
[375066345,1753516237719,-460.0,0.00019452,2]
[375066347,1753516237728,-460.0,0.00019452,2]
[375066348,1753516237737,-460.0,0.00019452,2]
[375066349,1753516237747,-546.0,0.00019452,2]
[375066350,1753516237756,-460.0,0.00019452,2]
[375066351,1753516237765,-460.0,0.00019452,2]
[375066353,1753516237775,-151.0,0.00019452,2]
[375066355,1753516237784,-460.0,0.00019452,2]
[375066357,1753516237794,-151.0,0.00019452,2]
[375066359,1753516237804,-460.0,0.00019452,2]
[375066361,1753516237813,-460.0,0.00019452,2]
[375066363,1753516237822,-151.0,0.00019452,2]
[375066365,1753516237832,-460.0,0.00019452,2]
[375066367,1753516237841,-262.660808,0.00019452,2]
[375066369,1753516237851,-460.0,0.00019452,2]
[375066371,1753516237860,-460.0,0.00019452,2]
[375066373,1753516237869,-151.0,0.00019452,2]
[375066375,1753516237878,-151.0,0.00019452,2]
[375066376,1753516237888,-567.84023847,0.00019452,2]
[375066378,1753516237897,-460.0,0.00019452,2]
[375066380,1753516237906,-467.73022398,0.00019452,2]
[375066382,1753516237916,-151.0,0.00019452,2]
[375066384,1753516237925,-151.0,0.00019452,2]
[375066386,1753516237934,-460.0,0.00019452,2]
[375066389,1753516237945,-460.0,0.00019452,2]
[375066390,1753516237955,-461.04063071,0.00019452,2]
[375066392,1753516237965,-460.0,0.00019452,2]
[375066394,1753516237975,-2556.3,0.00019452,2]
[375066396,1753516237983,-623.04,0.00019452,2]
[375066398,1753516237993,-460.0,0.00019452,2]
[375066400,1753516238003,-460.0,0.00019452,2]
[375066402,1753516238013,-460.0,0.00019452,2]
[375066404,1753516238022,-460.0,0.00019452,2]
[375066406,1753516238031,-631.19,0.00019452,2]
[375066408,1753516238040,-460.0,0.00019452,2]
[375066410,1753516238049,-460.0,0.00019452,2]
[375066411,1753516238058,-460.0,0.00019452,2]
[375066412,1753516238068,-540.52,0.00019452,2]
[375066413,1753516238077,-460.0,0.00019452,2]
[375066414,1753516238087,-1298.13,0.00019452,2]
[375066415,1753516238096,-460.0,0.00019452,2]
[375066416,1753516238106,-3365.59,0.00019452,2]
[375066417,1753516238116,-460.0,0.00019452,2]
[375066418,1753516238126,-1004.04,0.00019452,2]
[375066420,1753516238135,-460.0,0.00019452,2]
[375066422,1753516238145,-1811.31878862,0.00019452,2]
[375066427,1753516238182,-237.29138793,0.00019403,2]
[375066429,1753516238194,-1140.75121138,0.00019452,2]
[375066430,1753516238204,-168.42830948,0.00019452,2]
[375066431,1753516238213,-1605.71,0.00019452,2]
[375066432,1753516238223,-7636.01,0.00019452,2]
[375066433,1753516238232,-460.0,0.00019452,2]
[375066434,1753516238241,-460.0,0.00019452,2]
[375066435,1753516238251,-460.0,0.00019452,2]
[375066436,1753516238260,-460.0,0.00019452,2]
[375066437,1753516238269,-559.15500909,0.00019452,2]
[375066438,1753516238278,-1011.29,0.00019452,2]
[375066439,1753516238288,-460.0,0.00019452,2]
[375066440,1753516238298,-460.0,0.00019452,2]
[375066441,1753516238307,-460.0,0.00019452,2]
[375066442,1753516238316,-463.87593907,0.00019452,2]
[375066443,1753516238326,-151.0,0.00019452,2]
[375066444,1753516238335,-1730.89,0.00019452,2]
[375066445,1753516238345,-634.02680787,0.00019452,2]
[375066446,1753516238355,-460.0,0.00019452,2]
[375066447,1753516238364,-460.0,0.00019452,2]
[375066448,1753516238374,-460.0,0.00019452,2]
[375066449,1753516238383,-151.0,0.00019452,2]
[375066450,1753516238392,-463.34055893,0.00019452,2]
[375066451,1753516238402,-511.0,0.00019452,2]
[375066452,1753516238411,-460.0,0.00019452,2]
[375066453,1753516238420,-460.0,0.00019452,2]
[375066454,1753516238430,-1335.38,0.00019452,2]
[375066455,1753516238439,-460.0,0.00019452,2]
[375066456,1753516238448,-869.79,0.00019452,2]
[375066457,1753516238459,-460.0,0.00019452,2]
[375066458,1753516238468,-460.0,0.00019452,2]
[375066459,1753516238477,-460.0,0.00019452,2]
[375066460,1753516238487,-2130.65,0.00019452,2]
[375066461,1753516238497,-1183.08,0.00019452,2]
[375066462,1753516238506,-460.0,0.00019452,2]
[375066463,1753516238516,-460.0,0.00019452,2]
[375066464,1753516238525,-1039.07,0.00019452,2]
[375066465,1753516238535,-460.0,0.00019452,2]
[375066466,1753516238545,-460.0,0.00019452,2]
[375066467,1753516238555,-460.0,0.00019452,2]
[375066468,1753516238564,-557.0,0.00019452,2]
[375066469,1753516238573,-460.0,0.00019452,2]
[375066470,1753516238583,-460.0,0.00019452,2]
[375066471,1753516238592,-1147.2,0.00019452,2]
[375066472,1753516238602,-460.0,0.00019452,2]
[375066473,1753516238612,-4207.98,0.00019452,2]
[375066474,1753516238622,-460.0,0.00019452,2]
[375066475,1753516238631,-479.81,0.00019452,2]
[375066476,1753516238641,-717.69,0.00019452,2]
[375066477,1753516238650,-460.0,0.00019452,2]
[375066478,1753516238660,-622.93,0.00019452,2]
[375066479,1753516238671,-578.42803645,0.00019452,2]
[375066480,1753516238680,-460.0,0.00019452,2]
[375066481,1753516238690,-476.99644887,0.00019452,2]
[375066482,1753516238700,-842.94,0.00019452,2]
[375066483,1753516238718,-1092.57,0.00019452,2]
[375066484,1753516238729,-792.61,0.00019452,2]
[375066485,1753516238739,-1008.46,0.00019452,2]
[375066486,1753516238749,-3718.74,0.00019452,2]
[375066487,1753516238759,-460.0,0.00019452,2]
[375066488,1753516238769,-460.0,0.00019452,2]
[375066489,1753516238779,-713.43,0.00019452,2]
[375066490,1753516238788,-1609.07,0.00019452,2]
[375066491,1753516238798,-460.0,0.00019452,2]
[375066492,1753516238808,-151.0,0.00019452,2]
[375066493,1753516238818,-151.0,0.00019452,2]
[375066494,1753516238827,-460.0,0.00019452,2]
[375066495,1753516238836,-460.0,0.00019452,2]
[375066496,1753516238845,-460.0,0.00019452,2]
[375066497,1753516238855,-878.63,0.00019452,2]
[375066498,1753516238865,-460.0,0.00019452,2]
[375066499,1753516238874,-151.0,0.00019452,2]
[375066500,1753516238884,-151.0,0.00019452,2]
[375066501,1753516238895,-460.0,0.00019452,2]
[375066502,1753516238979,-460.0,0.00019452,2]
[375066503,1753516238990,-460.0,0.00019452,2]
[375066504,1753516239000,-237.09,0.00019452,2]
[375066505,1753516239010,-2301.15,0.00019452,2]
[375066506,1753516239019,-460.0,0.00019452,2]
[375066507,1753516239029,-462.81399082,0.00019452,2]
[375066508,1753516239038,-460.0,0.00019452,2]
[375066509,1753516239048,-2055.20029064,0.00019452,2]
[375066510,1753516239240,-460.0,0.00019178,2]
[375066511,1753516239250,-1180.10970936,0.00019452,2]
[375066512,1753516239261,-3372.54,0.00019452,2]
[375066513,1753516239271,-467.92723857,0.00019452,2]
[375066514,1753516239280,-460.0,0.00019452,2]
[375066515,1753516239291,-10838.37,0.00019452,2]
[375066516,1753516239300,-460.0,0.00019452,2]
[375066517,1753516239310,-1124.3,0.00019452,2]
[375066518,1753516239319,-728.84,0.00019452,2]
[375066519,1753516239329,-460.0,0.00019452,2]
[375066520,1753516239339,-266.78977484,0.00019452,2]
[375066521,1753516239349,-1305.5,0.00019452,2]
[375066522,1753516239359,-909.43,0.00019452,2]
[375066523,1753516239369,-460.0,0.00019452,2]
[375066524,1753516239378,-460.0,0.00019452,2]
[375066525,1753516239388,-460.0,0.00019452,2]
[375066526,1753516239398,-460.0,0.00019452,2]
[375066527,1753516239408,-1198.72,0.00019452,2]
[375066528,1753516239418,-460.0,0.00019452,2]
[375066529,1753516239428,-460.0,0.00019452,2]
[375066530,1753516239438,-460.0,0.00019452,2]
[375066531,1753516239448,-460.0,0.00019452,2]
[375066532,1753516239457,-182.981314,0.00019452,2]
[375066533,1753516239467,-1659.55,0.00019452,2]
[375066534,1753516239477,-151.0,0.00019452,2]
[375066535,1753516239487,-460.0,0.00019452,2]
[375066536,1753516239496,-460.0,0.00019452,2]
[375066537,1753516239506,-220.06161167,0.00019452,2]
[375066538,1753516239516,-460.0,0.00019452,2]
[375066539,1753516239526,-324.0,0.00019452,2]
[375066540,1753516239536,-324.0,0.00019452,2]
[375066541,1753516239546,-500.0,0.00019452,2]
[375066542,1753516239556,-500.0,0.00019473,2]
[375066543,1753516239566,-500.0,0.00019473,2]
[375066544,1753516239576,-581.92127721,0.00019473,2]
[375066545,1753516239585,-500.0,0.00019473,2]
[375066546,1753516239595,-500.0,0.00019473,2]
[375066547,1753516239605,-500.0,0.00019473,2]
[375066548,1753516239615,-501.21243488,0.00019473,2]
[375066549,1753516239624,-501.89189803,0.00019473,2]
[375066550,1753516239634,-502.16496801,0.00019473,2]
[375066551,1753516239643,-501.99924546,0.00019473,2]
[375066552,1753516239653,-502.01418913,0.00019473,2]
[375066553,1753516239663,-500.0,0.00019473,2]
[375066554,1753516239672,-500.0,0.00019473,2]
[375066555,1753516239683,-500.0,0.00019473,2]
[375066556,1753516239693,-168.0,0.00019516,2]
[375066557,1753516239705,-380.708538,0.0001959,2]
[375066558,1753516239715,-151.0,0.0001959,2]
[375066559,1753516239725,-181.83141211,0.00019616,2]
[375066560,1753516239735,-184.35836436,0.00019626,2]
[375066561,1753516239744,-168.0,0.00019644,2]
[375066562,1753516239753,-168.0,0.00019658,2]
[375066564,1753516239762,-167.0,0.00019658,2]
[375066565,1753516239771,-168.0,0.00019658,2]
[375066566,1753516239781,-168.0,0.00019679,2]
[375066567,1753516239791,-168.0,0.000197,2]
[375066568,1753516239800,-648.0,0.00019711,2]
[375066569,1753516239810,-407.0,0.00019711,2]
[375066571,1753516239819,-2158.0,0.00019711,2]
[375066573,1753516239828,-969.0,0.00019711,2]
[375066575,1753516239839,-151.0,0.00019712,2]
[375066577,1753516239848,-151.0,0.00019712,2]
[375066579,1753516239858,-151.0,0.00019712,2]
[375066581,1753516239867,-1000.0,0.00019721,2]
[375066583,1753516239877,-689.53,0.00019725,2]
[375066585,1753516239887,-460.0,0.00019725,2]
[375066587,1753516239897,-460.0,0.00019725,2]
[375066589,1753516239906,-663.45,0.00019725,2]
[375066591,1753516239916,-975.6,0.00019725,2]
[375066593,1753516239925,-2462.99,0.00019725,2]
[375066595,1753516239935,-2005.83,0.00019725,2]
[375066597,1753516239944,-151.0,0.00019725,2]
[375066599,1753516239954,-546.0,0.00019726,2]
[375066601,1753516239964,-557.0,0.00019726,2]
[375066603,1753516239973,-234.695073,0.00019726,2]
[375066605,1753516239982,-234.695073,0.00019726,2]
[375066607,1753516239992,-234.695073,0.00019726,2]
[375066609,1753516240001,-234.695073,0.00019726,2]
[375066611,1753516240011,-234.695073,0.00019726,2]
[375066613,1753516240020,-234.695073,0.00019726,2]
[375066615,1753516240029,-224.43881,0.00019726,2]
[375066617,1753516240039,-224.43881,0.00019726,2]
[375066619,1753516240048,-151.0,0.00019726,2]
[375066621,1753516240057,-151.0,0.00019726,2]
[375066623,1753516240066,-151.0,0.00019726,2]
[375066625,1753516240076,-151.0,0.00019726,2]
[375066627,1753516240085,-250.426663,0.00019726,2]
[375066629,1753516240095,-151.0,0.00019726,2]
[375066631,1753516240104,-191.239735,0.00019726,2]
[375066633,1753516240113,-262.96198933,0.00019726,2]
[375066635,1753516240123,-460.0,0.00019726,2]
[375066637,1753516240133,-460.0,0.00019726,2]
[375066639,1753516240143,-560.62,0.00019726,2]
[375066641,1753516240153,-151.0,0.00019726,2]
[375066643,1753516240162,-151.0,0.00019726,2]
[375066645,1753516240172,-151.0,0.00019726,2]
[375066647,1753516240181,-474.24103969,0.00019726,2]
[375066649,1753516240191,-460.0,0.00019726,2]
[375066651,1753516240200,-460.0,0.00019726,2]
[375066653,1753516240211,-336.107457,0.00019726,2]
[375066655,1753516240220,-460.0,0.00019726,2]
[375066657,1753516240229,-460.0,0.00019726,2]
[375066659,1753516240239,-460.0,0.00019726,2]
[375066661,1753516240248,-460.0,0.00019726,2]
[375066663,1753516240257,-460.0,0.00019726,2]